Cogmind - Beta 14 @@@ ROGUE MODE // 2024.09.03 @ 14:57:02 Player: star Result: Destroyed self with Rocket Launcher Performance ------------- Evolutions (0) 0 Regions Visited (2) 400 Robots Destroyed (18) 90 Value Destroyed (601) 601 Prototype IDs (0) 0 Alien Tech Used (0) 0 Bonus (0) 0 TOTAL SCORE: 1091 Bonus ------- None Cogmind --------- Core Integrity 0/250 Matter 269/300 Energy 55/100 System Corruption 0% Temperature Cool (0) Movement Rolling (200) Ox8 Location -10/Subcaves Parts ------- > --- POWER (1) -------- (None) > --- PROPULSION (2) --- Wheel > --- UTILITY (2) ------ Huge Storage Unit > --- WEAPON (2) ------- Rocket Launcher Rocket Launcher > --- INVENTORY (25) --- Compact Wheel Subdweller Monowheel Medium Matter Pod (1) High-capacity Matter Pod (0) Weapon Shielding Scrap Shield Cobbler Unit Subdweller Laser Light EM Pulse Cannon Light EM Pulse Cannon Light EM Pulse Cannon Light EM Pulse Cannon Beam Cannon Beam Cannon Beam Cannon Assault Rifle Assault Rifle Rocket Launcher Scrap Shield Fragment (27) Scrap Shield Fragment (25) Scrap Shield Fragment (20) Scrap Shield Fragment (3) Peak State ------------ > --- POWER ------------ Light Ion Engine > --- PROPULSION ------- Wheel Compact Wheel > --- UTILITY ---------- Huge Storage Unit > --- WEAPON ----------- Assault Rifle Rocket Launcher > --- INVENTORY -------- Compact Wheel Medium Matter Pod High-capacity Matter Pod Weapon Shielding Light EM Pulse Cannon Light EM Pulse Cannon Light EM Pulse Cannon Light EM Pulse Cannon Beam Cannon Beam Cannon Beam Cannon Assault Rifle Rocket Launcher Rocket Launcher [Rating: 9] Favorites ----------- Power Light Ion Engine Engine Light Ion Engine Propulsion Wheel Wheel Wheel Utility Huge Storage Unit Storage Huge Storage Unit Protection Light Armor Plating Weapon Assault Rifle Energy Gun EM Pulse Gun Energy Cannon Light EM Pulse Cannon Ballistic Gun Assault Rifle Launcher Rocket Launcher Build | -11 -10 -10 ------- Run | Yrd Mat Sub Slots Evolved . | . . . Power . | . . . Propulsion . | . . . Utility . | . . . Weapon . | . . . Parts Attached 27 | 6 12 9 Power 1 | 1 . . Engine 1 | 1 . . Core . | . . . Reactor . | . . . Propulsion 3 | 2 1 . Treads . | . . . Leg . | . . . Wheel 3 | 2 1 . Hover . | . . . Flight . | . . . Utility 5 | 1 4 . Device . | . . . Storage 4 | 1 3 . Processor . | . . . Hackware . | . . . Protection 1 | . 1 . Artifact . | . . . Weapon 18 | 2 7 9 Energy Gun 1 | . 1 . Energy Cannon 5 | . 2 3 Ballistic Gun 5 | 2 2 1 Ballistic Cannon . | . . . Launcher 7 | . 2 5 Special Weapon . | . . . Impact Weapon . | . . . Slashing Weapon . | . . . Piercing Weapon . | . . . Special Melee Weapon . | . . . Unidentified Prototypes . | . . . Parts Lost 5 | . 3 2 Power 1 | . . 1 Propulsion 2 | . 1 1 Utility 1 | . 1 . Weapon 1 | . 1 . Highest Loss Streak 2 | . 2 2 To Critical Strikes . | . . . Average Slot Usage (%) 78 | . 85 60 Engine 10 | . 14 1 Wheel 20 | . 22 15 Storage 16 | . 16 14 Protection 1 | . 2 . Energy Gun 3 | . 4 . Energy Cannon 8 | . 5 14 Ballistic Gun 12 | . 17 2 Launcher 3 | . . 11 Peak Build Rating 9 | 6 9 9 Average Rating 7 | 4 7 7 On Entrance 5 | . 6 9 Naked Turns . | . . . Heaviest Build 107 | 12 107 89 Greatest Support 26 | 26 26 26 Greatest Overweight (x) 8 | . 6 8 Average Overweight (x) 2 | . 1 7 Largest Inventory Capacity 25 | 8 25 25 Average Capacity 20 | 7 19 25 Most Carried 24 | 1 15 24 Average Carried 12 | . 10 18 Final Capacity 25 | 8 25 25 Final Carried 24 | 1 14 24 Class Distribution -------------------- 100% | Mutant Dominant Class ---------------- Mutant | -10/Materials Mutant | -10/Subcaves Resources | -11 -10 -10 ----------- Run | Yrd Mat Sub Matter Collected 837 | 232 298 307 Remotely . | . . . Salvage Created 535 | . 322 213 Parts 33 | . 17 16 Haulers Intercepted . | . . . Recyclers Shooed 1 | . 1 . Parts Field Recycled . | . . . Retrieved Matter . | . . . Parts Self-Destructed 4 | . . 4 Prevented . | . . . Kills | -11 -10 -10 ------- Run | Yrd Mat Sub Combat Hostiles Destroyed 16 | . 9 7 Guns 8 | . 8 . AOE 8 | . 1 7 Classes Destroyed 6 | . 4 2 Worker 1 | . 1 . Operator 1 | . 1 . Swarmer 2 | . 2 . Grunt 7 | . 7 . Cobbler 1 | . . 1 Subdweller 7 | . . 7 Best Kill Streak 7 | . 7 5 Combat Bots Only 5 | . 3 5 Max Kills in Single Turn 2 | . 1 2 Gunslinging . | . . . Exploded 2 | . 1 2 Melee . | . . . Uniques/NPCs Destroyed . | . . . Combat | -11 -10 -10 -------- Run | Yrd Mat Sub Hostile Shots Fired 52 | . 38 14 Missed 17 | . 11 6 Damage Taken 666 | . 468 198 Core 251 | . 171 80 Absorbed by Shields . | . . . Core Remaining (%) 100 | 100 . . Volleys Fired 50 | . 31 19 Largest 2 | . 2 2 Hottest 120 | . 60 120 Shots Fired 92 | . 61 31 Gun 61 | . 61 . Cannon 14 | . . 14 Launcher 17 | . . 17 Special . | . . . Kinetic 35 | . 35 . Thermal 6 | . . 6 Explosive 17 | . . 17 Electromagnetic 34 | . 26 8 Robot Hit Streak 8 | . 8 8 Robot Miss Streak 5 | . 5 1 Penetration Max . | . . . Secondary Targets . | . . . Shots Hit Robots 59 | . 37 22 Core Hits 33 | . 18 15 Critical Kills . | . . . Critical Parts Destroyed . | . . . Critical Strikes . | . . . Melee Attacks . | . . . Impact . | . . . Slashing . | . . . Piercing . | . . . Sneak Attacks . | . . . Combat Hostiles . | . . . Follow-up Attacks . | . . . Damage Inflicted 2010 | . 847 1163 Guns 483 | . 483 . Cannons 179 | . . 179 Explosions 1348 | . 364 984 Melee . | . . . Ramming . | . . . Kinetic 314 | . 314 . Thermal 449 | . 364 85 Explosive 984 | . . 984 Electromagnetic 263 | . 169 94 Impact . | . . . Slashing . | . . . Piercing . | . . . Highest Corruption . | . . . Average Corruption . | . . . Corruption Purged . | . . . Corruption Blocked . | . . . Overload Shots . | . . . Overflow Damage 104 | . 104 . Projectiles . | . . . Explosions 104 | . 104 . Melee . | . . . Knockbacks . | . . . Impact . | . . . Kinetic . | . . . Secondary . | . . . Self-Inflicted Damage 165 | . 125 40 Shots 3 | . 2 1 Rammed . | . . . Targets Rammed . | . . . Kicked . | . . . Crushed . | . . . Highest Temperature 66 | . 66 . Average Temperature 23 | . 23 . Received Heat Transfer 189 | . 159 30 Siege Activations . | . . . Robots Corrupted . | . . . Combat Hostiles . | . . . Parts Fried . | . . . Impact Corruptions . | . . . Robots Melted . | . . . Combat Hostiles . | . . . Parts Melted 1 | . 1 . Heat Transferred 485 | . 300 185 Parts Sabotaged . | . . . Parts Stolen . | . . . Parts Stripped . | . . . Power Chain Reactions 1 | . 1 . Alert | -11 -10 -10 ------- Run | Yrd Mat Sub Peak Influence 241 | . 241 . Initial . | . . . Average 87 | . 90 . Maximum Alert Level 1 | . 1 . Low Security (%) 88 | 100 87 . Level 1 11 | . 12 . Level 2 . | . . . Level 3 . | . . . Level 4 . | . . . Level 5 . | . . . High Security . | . . . Max Security . | . . . Squads Dispatched 2 | . 2 . Investigation . | . . . Extermination . | . . . Reinforcement 2 | . 2 . Assault . | . . . Garrison . | . . . Intercept . | . . . Searches Triggered . | . . . Construction Impeded . | . . . Haulers Reinforced . | . . . Active Scanning Responses . | . . . Cargo Convoy Interrupts . | . . . Stealth | -11 -10 -10 --------- Run | Yrd Mat Sub Distress Signals 2 | . 2 . Communications Jammed . | . . . Distress Signals . | . . . Times Spotted 31 | . 24 7 Peak Tracking Total 5 | . 5 3 Tactical Retreats 2 | . 2 . Traps | -11 -10 -10 ------- Run | Yrd Mat Sub Traps Triggered 1 | . 1 . Indirectly . | . . . Trap Hack Attempts . | . . . Triggered . | . . . Disarmed . | . . . Reprogrammed . | . . . Reused . | . . . Traps Extracted . | . . . Installed . | . . . Triggered 1 | . . 1 Machines | -11 -10 -10 ---------- Run | Yrd Mat Sub Machines Disabled 2 | . 2 . Max in Single Turn 2 | . 2 . Machines Repaired . | . . . Machines Dismantled . | . . . Machines Sabotaged . | . . . Overloaded Fab Kills . | . . . Hacking | -11 -10 -10 --------- Run | Yrd Mat Sub Machines Accessed 1 | . 1 . Terminals 1 | . 1 . Fabricators . | . . . Repair Stations . | . . . Recycling Units . | . . . Scanalyzers . | . . . Garrison Access . | . . . Total Hacks 1 | . 1 . Successful . | . . . Failed 1 | . 1 . Catastrophic 1 | . 1 . Database Lockouts . | . . . Manual 1 | . 1 . Terminals 1 | . 1 . Fabricators . | . . . Repair Stations . | . . . Recycling Units . | . . . Scanalyzers . | . . . Garrison Access . | . . . Terminal Hacks . | . . . Fabricator Hacks . | . . . Repair Station Hacks . | . . . Recycling Unit Hacks . | . . . Scanalyzer . | . . . Garrison Access Hacks . | . . . Unauthorized Hacks . | . . . Terminals . | . . . Fabricators . | . . . Repair Stations . | . . . Recycling Units . | . . . Scanalyzers . | . . . Garrison Access . | . . . Data Cores Recovered . | . . . Used . | . . . Hacking Detections 1 | . 1 . Full Trace Events . | . . . Feedback Events . | . . . Feedback Blocked . | . . . Robot Schematics Acquired . | . . . Robots Built . | . . . Authchips . | . . . Time . | . . . Total Robot Build Rating . | . . . Part Schematics Acquired . | . . . Parts Built . | . . . Authchips . | . . . Time . | . . . Total Part Build Rating . | . . . Parts Repaired . | . . . Time . | . . . Parts Recycled . | . . . Recycled Matter . | . . . Retrieved Matter . | . . . Retrieved Components . | . . . Parts Scanalyzed . | . . . Part Schematics Acquired . | . . . Parts Damaged . | . . . Bothacking | -11 -10 -10 ------------ Run | Yrd Mat Sub Used RIF Installer . | . . . Robots Hacked . | . . . Non-combat . | . . . Combat . | . . . Robot Hacks Applied . | . . . Relay Couplers Released . | . . . Fabnet Peak Effective % . | . . . Robots Rewired . | . . . Allies Hacked . | . . . Hacks Repelled . | . . . Allies | -11 -10 -10 -------- Run | Yrd Mat Sub Total Allies . | . . . Largest Group . | . . . Highest-Rated Group . | . . . Highest-Rated Ally . | . . . Total Orders . | . . . Ally Attacks . | . . . Total Damage . | . . . Kills . | . . . Allies Corrupted . | . . . Allies Melted . | . . . Intel | -11 -10 -10 ------- Run | Yrd Mat Sub Robot Analysis Total . | . . . Derelict Logs Recovered 1 | . . 1 Drone Launches . | . . . Drone Recoveries . | . . . Exploration | -11 -10 -10 ------------- Run | Yrd Mat Sub Turns Passed 1840 | 43 1275 522 Spaces Moved 780 | 38 505 237 Core 1 | 1 . . Treads . | . . . Legs . | . . . Wheels 779 | 37 505 237 Hover . | . . . Flight . | . . . Fastest Speed 50 | 50 90 135 Average Speed 134 | 88 112 187 Slowest Speed 200 | 90 190 200 Overloaded Moves . | . . . Propulsion Burnouts . | . . . Robots Hopped . | . . . Cave-ins Triggered . | . . . Exploration Rate (%) 36 | 3 86 19 Regions Visited 2 Branch Regions 1 Pre-discovered Areas 1 | . . 1 Known Exits Taken . | . . . Unknown Exits Taken 2 | 1 1 . Scrap Searched . | . . . Spaces Dug . | . . . Terrain Destroyed 99 | . 21 78 Melee . | . . . Projectile . | . . . AOE 99 | . 21 78 Terrain Rammed . | . . . Walls Destroyed . | . . . Machines Disabled . | . . . Actions | -11 -10 -10 --------- Run | Yrd Mat Sub Total 1473 | 44 1148 281 Wait 588 | . 584 4 Move 778 | 37 504 237 Hop . | . . . Pick Up 26 | 1 15 10 Fast Attach 9 | 6 3 . Attach 2 | . 2 . Detach . | . . . Swap 16 | . 7 9 Drop 4 | . 2 2 Fire 50 | . 31 19 Melee . | . . . Ram . | . . . Kick . | . . . Crush . | . . . Escape Stasis . | . . . Rewire . | . . . Trap . | . . . Miscellaneous . | . . . Route ------- -11/Scrapyard -10/Materials (discovered 4 exits: [*Mat x2] / [*Min] / [*Sub]) -10/Subcaves History --------- Turn | Location | Event 15 | -11/Scrapyard | Discovered new exit (range 15) 44 | -11/Scrapyard | Entered Materials 265 | -10/Materials | Discovered new exit (range 15) 311 | -10/Materials | Build established: Mutant 313 | -10/Materials | Core integrity fell below 50% 615 | -10/Materials | Discovered new exit (range 9) 717 | -10/Materials | Discovered new exit (range 7) 1294 | -10/Materials | Discovered new exit (range 6) 1319 | -10/Materials | Entered Subcaves 1408 | -10/Subcaves | Core integrity fell below 20% 1424 | -10/Subcaves | Ambushed by Subdwellers from Twisted Machinery 1841 | -10/Subcaves | Destroyed self with Rocket Launcher Last Messages --------------- 01554_ Extracted 100 matter. 01556_ The unstable cave ceiling collapses. 01558_ Acquired Med. Matter Pod. 01569_ Subatomizers dissect the Sub. Laser. 01579_ Acquired Scrap Shield Fragment. 01590_ Subatomizers dissect the Sub. Laser, destroying it. 01592_ Acquired Scrap Shield Fragment. 01602_ Subatomizers dissect the Sub. Laser. 01609_ Acquired Sub. Laser. 01612_ Acquired Sub. Monowheel. 01736_ SZ-75Q(O) cries out in pain. 01736_ SZ-75Q(O) destroyed. 01740_ Subatomizers dissect the Cobbler Unit. 01747_ Acquired 52 matter. 01751_ Acquired Cobbler Unit. 01752_ Subatomizers dissect the Wheel. 01786_ Acquired 8 matter. 01798_ Acquired 7 matter. 01820_ Acquired 5 matter. 01822_ Acquired 6 matter. Map ----- +----------------------------------------------------+ | ?????????????????????????????????????????????? | | ?????????????????????????????????????????????? | | ?????????????????????????????????????????????? | | ?????????????????????????????????????????????? | | ?????????????????????????????????????????????? | | ?????????????????????????????????????????????? | | ??????????????????????????" ????????????????? | | ?????????????????????????" ????????????????? | | ????????????????????????? ????????????????? | | ????????????????????????? ????????????????? | | ???????????????????????? #???????????????? | | ??????????????????????## ##??????????????? | | ?????????????????????## ???????????????? | | ?????????????????????? ???????????????? | | ??????????????????????? # ???????????????? | | ??????????????????????? # ???????????????? | | ?????????????????????## % #???????????????? | | ????????????????????##% #???????????????? | | ????????????????????# % ? ###?????????????? | | ???????????????????## #?# &###???????????? | | ???????????????????# % #?# ##??????????? | | ???????????????????# ### " R#??????????? | | ???????????????????# ## RR #??????????# | | ???????????????????# # <#??????????# | | ???????????????##### <&< #??????????? | | ???????????????# @ # #####??????????? | | ??????????????#< #### ##?????????????? | | ???????????# % #### #?????????????? | | ???????????##<#< ####?# ##?????????????? | | ??????????????# %?????# ##?######???????? | | ?????????????# ??????## #### ######### | | ?????????????#### #??????## ## ## # # | | ????????????????##???????# # # | | ?????????????????????????## | | ?????????????????????????# # # | | ?????????????????????????#### # ######### | | ????????????????????????????### ##???????? | | ??????????????????????????????#######????????? | | ?????????????????????????????????????????????? | | ?????????????????????????????????????????????? | | ?????????????????????????????????????????????? | | ?????????????????????????????????????????????? | | ?????????????????????????????????????????????? | | ?????????????????????????????????????????????? | | ?????????????????????????????????????????????? | | ?????????????????????????????????????????????? | | ?????????????????????????????????????????????? | | ?????????????????????????????????????????????? | | ?????????????????????????????????????????????? | | ?????????????????????????????????????????????? | +----------------------------------------------------+ Best States ------------- Heat Dissipation 25 Energy Generation 10 Energy Capacity 125 Matter Stores 300 Matter Capacity 300 Sight Range 16 Terrain Scan Density 10 Armor Coverage 150 Evasion (%) 42 Item Schematics ----------------- None Robot Schematics ------------------ None Fabricated ------------ Nothing Alien Tech Used ----------------- None Achievements -------------- None Challenges ------------ None Game ------ Seed CannonGrapheneSegregator Manual? 0 Play Time 00:09:19 Cumulative 68.8 hours Start 2024.09.03 @ 14:48:06 End 2024.09.03 @ 14:57:02 Sessions 1 Manual Loads 0 Difficulty Rogue Special Mode None Game No. 124 Rogue 124 Adventurer 0 Explorer 0 Win Type - Total 0 Types 0/0/0/0/0/0/0/0/0 Lore% 32 Gallery% 45 Achievement% 37 Wizard Run 0 Options --------- Layout 0 ASCII 0 Keyboard 0 Movement Numpad Keybinds 0 Fullscreen 2 Font 18/SmallcapsGlow Map View 76x50 Zoom Use 0% Tactical HUD 1 Map Filters NONE Filters NONE Steam 1 RUN: af75b943-822b-4b3c-ad7e-63b88e9ef886